bitfinex/quotes_ETHUSD_20240828
["timestamp","ask_amount","ask_price","bid_price","bid_amount"]
[1724831353709,4.07285,2455.3,2455.0,0.55]
[1724831354001,8.14578,2455.3,2455.1,0.03868]
[1724831354312,4.07285,2455.3,2455.1,0.03868]
[1724831355100,4.07257,2455.5,2455.1,0.03868]
[1724831355314,3.0,2455.9,2455.3,4.13514438]
[1724831355315,4.07193,2455.9,2455.3,4.13514438]
[1724831355464,6.36355,2456.1,2455.6,4.13514438]
[1724831355672,6.36355,2456.1,2455.7,0.55]
[1724831356108,6.36355,2456.1,2455.8,0.03737224]
[1724831356480,4.07176,2456.0,2455.7,0.55]
[1724831356674,4.07186,2455.9,2455.7,0.55]
[1724831358074,8.14379,2455.9,2455.7,0.55]
[1724831358277,4.07186,2455.9,2455.7,0.55]
[1724831358516,4.7718815,2455.9,2455.5,0.55]
[1724831358877,4.7718815,2455.9,2455.3,0.55]
[1724831359113,4.07199,2455.8,2455.3,0.55]
[1724831359493,4.07217,2455.7,2455.3,0.55]
[1724831359696,2.292,2456.1,2455.1,7.37]
[1724831360000,4.07123,2456.3,2454.8,12.42]
[1724831360001,4.07319,2455.1,2454.8,12.42]
[1724831360189,4.07319,2455.1,2454.7,7.37]
[1724831360381,4.07286,2455.3,2454.7,7.37]
[1724831360590,4.07319,2455.1,2454.7,8.74660444]
[1724831361207,6.48017,2455.6,2454.7,8.74660444]
[1724831361208,2.4078,2455.6,2454.7,7.37]
[1724831361403,4.07228,2455.7,2454.4,4.13514438]
[1724831361404,2.4078,2455.2,2454.4,4.13514438]
[1724831361614,4.07374,2454.8,2454.4,4.13514438]
[1724831362123,4.07363,2454.9,2454.4,4.13514438]
[1724831362415,4.07374,2454.8,2454.4,7.45906433]
[1724831362917,8.14751,2454.8,2454.5,3.0]
[1724831363081,4.07374,2454.8,2454.5,3.0]
[1724831363282,4.07374,2454.8,2454.4,7.45906433]
[1724831363474,2.4078,2455.2,2454.3,7.37]
[1724831363475,4.07403,2454.6,2454.3,7.37]
[1724831364219,4.07396,2454.7,2454.3,7.37]
[1724831364382,4.07425,2454.5,2454.3,7.37]
[1724831364586,4.07431,2454.4,2454.3,7.37]
[1724831364777,4.07389,2454.7,2454.3,7.92]
[1724831364979,4.07286,2455.3,2454.6,4.13514438]
[1724831365179,4.07258,2455.5,2455.1,4.13514438]
[1724831365407,2.4078,2455.7,2455.2,0.55]
[1724831365725,8.14564,2455.3,2455.2,0.55]
[1724831365890,8.14564,2455.3,2455.0,0.55]
[1724831365891,4.07322,2455.1,2455.0,0.55]
[1724831366437,8.14579,2455.3,2455.0,0.55]
[1724831366713,8.14575,2455.3,2455.0,0.55]
[1724831366916,4.07282,2455.3,2455.0,0.55]
[1724831367087,4.07315,2455.1,2455.0,0.55]
[1724831367412,4.07282,2455.3,2455.0,0.55]
[1724831367620,4.0731,2455.2,2455.0,0.55]
[1724831367914,4.07282,2455.3,2455.0,0.55]
[1724831368153,4.07256,2455.5,2455.0,1.01851444]
[1724831368325,4.07283,2455.3,2455.0,0.55]
[1724831368478,4.07256,2455.5,2455.0,0.55]
[1724831368683,2.4078,2455.7,2455.0,0.55]
[1724831368884,2.4078,2455.7,2454.9,0.55]
[1724831369088,4.07296,2455.3,2454.9,0.55]
[1724831370598,4.07278,2455.4,2454.9,0.55]
[1724831370599,4.07299,2455.2,2454.9,0.55]
[1724831370809,8.14608,2455.2,2454.9,0.55]
[1724831371001,4.07299,2455.2,2454.9,0.55]
[1724831371212,8.14608,2455.2,2454.9,0.55]
[1724831371409,4.07331,2455.0,2454.9,0.55]
[1724831371813,4.07331,2455.0,2454.7,0.55]
[1724831371814,4.07357,2454.9,2454.7,0.55]
[1724831372028,4.07365,2454.8,2454.7,0.55]
[1724831372233,7.379228,2455.2,2454.4,7.37]
[1724831372234,4.07414,2454.5,2454.4,7.37]
[1724831372400,4.07414,2454.5,2454.2,3.0]
[1724831372604,4.07414,2454.5,2453.9,30.25679203]
[1724831372838,4.07414,2454.5,2454.0,7.7917582]
[1724831373510,4.07435,2454.4,2454.0,3.7167882]
[1724831373714,4.07435,2454.4,2453.9,13.76179203]
[1724831374398,4.07435,2454.4,2454.0,3.0]
[1724831374616,8.14876,2454.4,2454.0,3.0]
[1724831374817,4.07465,2454.2,2453.9,12.88574259]
[1724831375243,4.07465,2454.2,2453.9,7.37]
[1724831375742,4.0749,2454.1,2453.6,12.88574259]
[1724831375944,4.07525,2453.9,2453.6,12.88574259]
[1724831376129,4.07525,2453.9,2453.3,5.51574259]
[1724831376130,4.07547,2453.7,2453.3,5.51574259]
[1724831376332,8.15104,2453.7,2453.3,5.51574259]
[1724831376508,4.07547,2453.7,2453.3,8.70144185]
[1724831376701,8.15052,2453.9,2453.3,8.70144185]
[1724831377137,4.07524,2453.9,2453.3,12.77757185]
[1724831377348,4.07488,2454.1,2453.6,5.51574259]
[1724831377642,4.07482,2454.1,2453.9,5.51574259]
[1724831378021,4.07482,2454.1,2454.0,0.55]
[1724831378346,8.14964,2454.1,2454.0,0.55]
[1724831378518,8.964604,2454.1,2454.0,0.55]
[1724831378847,8.14964,2454.1,2454.0,0.55]
[1724831382672,8.14964,2454.1,2454.0,1.55]
[1724831383991,14.54106,2454.1,2454.0,1.0]
[1724831384297,18.61588,2454.1,2454.0,1.0]
[1724831384453,20.477468,2454.1,2454.0,1.0]
[1724831386253,16.402648,2454.1,2454.0,1.0]
[1724831386490,10.46624,2454.1,2454.0,1.0]
[1724831386691,14.54105,2454.1,2454.0,1.0]
[1724831387981,14.54104,2454.1,2454.0,1.0]
[1724831391059,16.402587,2454.1,2454.0,1.0]
[1724831395468,20.477397,2454.1,2454.0,1.0]
[1724831395988,2.4216,2453.2,2452.3,7.37]
[1724831396304,4.07514,2454.0,2452.3,7.37]
[1724831396305,4.07656,2453.1,2452.7,2.2754]
[1724831396657,4.07656,2453.1,2452.8,0.03669738]
[1724831396856,4.07656,2453.1,2452.7,2.2754]
[1724831396857,8.15315,2453.1,2452.7,2.2754]
[1724831397086,4.07656,2453.1,2452.8,4.18083649]
[1724831397666,8.15313,2453.1,2452.9,0.55]
[1724831397893,4.07656,2453.1,2453.0,0.03708516]
[1724831399077,4.07623,2453.3,2453.0,4.18082437]
[1724831399436,4.07623,2453.3,2453.0,0.03708516]
[1724831399437,4.0763,2453.2,2453.0,0.03708516]
[1724831399701,4.07647,2453.1,2453.0,0.03708516]
[1724831399899,4.0763,2453.2,2453.0,0.03708516]
[1724831400405,8.15215,2453.4,2453.0,0.03708516]
[1724831400708,4.07458,2454.3,2453.3,2.4468]
[1724831400998,4.07489,2454.1,2453.5,4.14373921]
[1724831401202,4.07527,2453.9,2453.6,0.55]
[1724831401386,8.15053,2453.9,2453.6,0.55]
[1724831401587,8.15053,2453.9,2453.7,0.03684278]
[1724831401588,8.15056,2453.9,2453.7,0.03684278]
[1724831401770,8.15062,2453.8,2453.7,0.03684278]
[1724831402021,8.965682,2453.8,2453.7,0.03684278]
[1724831402190,4.07531,2453.8,2453.7,0.03684278]
[1724831402979,8.15015,2454.0,2453.7,0.03684278]
[1724831403176,4.07472,2454.2,2453.7,4.18058199]
[1724831403395,4.07464,2454.3,2453.9,4.14373921]
[1724831403599,4.07464,2454.2,2453.8,3.7926072]
[1724831403902,4.07464,2454.2,2454.0,0.03635816]
[1724831404197,4.07464,2454.2,2453.8,3.7926072]
[1724831404403,4.07464,2454.2,2454.1,0.03635816]
[1724831404601,4.07464,2454.2,2453.8,0.55]
[1724831404814,4.07464,2454.2,2454.1,0.03635816]
[1724831404993,4.07464,2454.2,2453.7,4.14373921]
[1724831405191,4.07464,2454.2,2454.1,0.03635816]
[1724831405403,4.07464,2454.2,2453.8,0.55]
[1724831405565,4.07464,2454.2,2454.1,0.03635816]
[1724831405767,4.07464,2454.2,2453.8,1.72692692]
[1724831405969,4.07464,2454.2,2454.1,0.03635816]
[1724831406168,4.0744,2454.4,2453.8,1.72692692]
[1724831406169,4.07443,2454.4,2453.9,4.22524132]
[1724831406364,4.07464,2454.2,2454.1,0.03635816]
[1724831406593,4.07493,2454.1,2453.8,0.55]
[1724831407208,4.07514,2453.9,2453.5,6.60483921]
[1724831407769,4.07499,2454.0,2453.5,6.60483921]
[1724831408212,4.07533,2453.8,2453.5,6.60483921]
[1724831408371,8.15149,2453.6,2453.2,2.4083]
[1724831408565,4.07574,2453.6,2453.2,2.4083]
[1724831408769,8.15151,2453.6,2453.2,2.4083]
[1724831408966,4.07574,2453.6,2453.2,2.4083]
[1724831409665,4.07597,2453.4,2453.3,0.55]
[1724831409871,8.15153,2453.6,2453.3,0.55]
[1724831410092,4.07574,2453.6,2453.3,0.55]
[1724831410496,4.07574,2453.6,2453.3,4.69373921]
[1724831410816,4.07473,2454.2,2453.5,8.21943921]
[1724831410972,4.07473,2454.2,2453.7,4.14373921]
[1724831410973,4.07484,2454.1,2453.7,4.14373921]
[1724831411178,4.07484,2454.1,2453.8,0.55]
[1724831411809,4.07473,2454.2,2453.8,0.55]
[1724831412016,4.07491,2454.1,2453.8,0.55]
[1724831412209,4.075,2454.0,2453.8,0.55]
[1724831412412,4.075,2454.0,2453.6,0.55]
[1724831412582,4.075,2454.0,2453.6,0.63150165]
[1724831413216,4.07473,2454.2,2453.6,6.56479574]
[1724831413424,8.14947,2454.2,2453.6,6.56479574]
[1724831413594,4.07524,2453.9,2453.6,0.55]
[1724831414214,8.15049,2453.9,2453.6,0.55]
[1724831414421,4.07524,2453.9,2453.6,0.55]
[1724831414613,8.15049,2453.9,2453.6,0.55]
[1724831414826,8.15047,2453.9,2453.6,0.55]
[1724831415139,4.07523,2453.9,2453.6,0.55]
[1724831415425,8.15048,2453.9,2453.6,0.55]
[1724831415831,4.07532,2453.8,2453.5,7.37]
[1724831415996,4.07564,2453.6,2453.5,7.37]
[1724831416589,8.15078,2453.8,2453.5,7.37]
[1724831416785,4.07532,2453.8,2453.5,7.37]
[1724831417037,8.15073,2453.8,2453.5,7.37]
[1724831417206,4.07564,2453.6,2453.5,7.37]
[1724831417412,4.07671,2453.0,2452.7,7.37]
[1724831417634,4.07671,2453.0,2452.6,4.22527525]
[1724831417790,4.07688,2452.9,2452.6,4.22527525]
[1724831417991,8.15349,2453.0,2452.6,4.14373921]
[1724831418220,4.07671,2453.0,2452.6,4.14373921]
[1724831418435,4.07671,2453.0,2452.9,4.14373921]
[1724831418589,4.07533,2453.8,2453.0,4.07653]
[1724831418785,4.07585,2453.5,2453.1,4.22525792]
[1724831419026,4.07579,2453.6,2453.1,4.22525792]
[1724831419242,4.07579,2453.6,2453.2,0.42252579]
[1724831419389,4.07537,2453.8,2453.3,4.2252607]
[1724831419591,4.07537,2453.8,2453.2,0.42252579]
[1724831419592,4.07469,2454.2,2453.2,0.08151195]
[1724831419795,8.15082,2453.8,2453.3,0.55]
[1724831420025,8.15084,2453.8,2453.3,0.55]
[1724831420228,4.07552,2453.7,2453.3,0.55]
[1724831420436,4.07548,2453.7,2453.3,0.55]
[1724831421507,4.07539,2453.8,2453.3,0.55]
[1724831422549,4.07539,2453.8,2453.2,0.55]
[1724831422750,4.07539,2453.8,2453.2,1.87898369]
[1724831422911,4.07539,2453.8,2453.3,4.15764574]
[1724831423111,4.07568,2453.6,2453.4,0.55]
[1724831423351,4.07568,2453.6,2453.2,1.79746765]
[1724831423744,4.07568,2453.6,2453.2,0.55]
[1724831424755,8.15145,2453.6,2453.2,0.55]
[1724831424920,4.07568,2453.6,2453.2,0.55]
[1724831425744,4.076,2453.4,2453.2,0.55]
[1724831426052,4.07535,2453.8,2453.2,4.07629]
[1724831426212,4.07548,2453.7,2453.2,5.33623685]
[1724831426553,4.07548,2453.7,2453.3,0.55]
[1724831426853,2.3786,2454.0,2453.3,0.55]
[1724831426854,4.0759,2453.5,2453.3,0.55]
[1724831427007,4.0759,2453.5,2453.1,0.55]
[1724831427414,4.07568,2453.6,2453.1,0.55]
[1724831427620,4.07568,2453.6,2453.1,0.631521]
[1724831427921,4.07568,2453.6,2453.1,2.0578121]
[1724831428114,4.07568,2453.6,2453.1,2.1393331]
[1724831428966,4.07598,2453.4,2453.1,0.55]
[1724831429128,4.0763,2453.2,2453.1,0.55]
[1724831429329,4.0763,2453.2,2452.7,22.1362]
[1724831429524,4.0763,2453.2,2452.8,3.0]
[1724831430354,8.15277,2453.2,2452.8,3.0]
[1724831430665,8.15277,2453.2,2452.7,22.1362]
[1724831430666,4.0763,2453.2,2452.7,22.1362]
[1724831430965,4.07582,2453.5,2452.8,10.23200948]
[1724831431118,4.07573,2453.6,2453.0,4.07663]
[1724831431318,8.15153,2453.6,2453.1,0.63152068]
[1724831431859,4.07585,2453.5,2453.1,0.63152068]
[1724831432044,4.07585,2453.5,2453.2,0.07511191]
[1724831432252,4.07585,2453.5,2453.3,0.55]
[1724831432437,4.07585,2453.5,2453.3,0.62589937]
[1724831433164,4.07573,2453.6,2453.3,0.62589937]
[1724831433323,8.15153,2453.6,2453.3,0.62589937]
[1724831433523,4.07573,2453.6,2453.3,0.62589937]
[1724831434371,8.15149,2453.6,2453.3,0.62589937]
[1724831435461,4.07573,2453.6,2453.3,0.62589937]
[1724831435661,6.431,2453.8,2453.3,0.62589937]
[1724831435662,4.0754,2453.8,2453.3,0.62589937]
[1724831435865,4.07559,2453.7,2453.3,1.88450196]
[1724831436025,4.07574,2453.6,2453.3,0.62589937]
[1724831436225,4.07581,2453.5,2453.3,0.62589937]
[1724831436770,4.07555,2453.7,2453.3,0.62589937]
[1724831437071,4.07582,2453.5,2453.3,0.62589937]
[1724831437372,4.07597,2453.4,2453.3,0.62589937]
[1724831438035,8.15194,2453.4,2453.3,0.62589937]
[1724831438273,8.15194,2453.4,2453.3,0.07589937]
[1724831438565,6.35182,2453.6,2452.6,18.81869]
[1724831438566,4.07655,2453.1,2452.6,18.81869]
[1724831438865,8.15314,2453.1,2452.6,9.56995565]
[1724831439165,8.15314,2453.1,2452.7,0.0733811]
[1724831439341,4.07664,2453.0,2452.7,0.0733811]
[1724831439665,4.07664,2453.0,2452.8,0.55]
[1724831440058,4.07664,2453.0,2452.9,0.0733811]
[1724831440267,4.07664,2453.0,2452.9,0.55]
[1724831440471,4.07664,2453.0,2452.8,0.55]
[1724831440676,4.07655,2453.1,2452.9,0.0733811]
[1724831440963,4.07655,2453.1,2452.7,0.55]
[1724831440964,4.07655,2453.1,2453.0,0.55]
[1724831441161,4.07655,2453.1,2453.0,0.623987]
[1724831443691,8.15312,2453.1,2453.0,0.623987]
[1724831443890,8.968405,2453.1,2453.0,0.623987]
[1724831446590,4.711012,2453.5,2453.0,0.623987]
[1724831446591,4.07632,2453.2,2453.0,0.623987]
[1724831446997,4.07647,2453.1,2453.0,0.623987]
[1724831448194,4.07606,2453.4,2453.0,0.623987]
[1724831448499,4.07622,2453.3,2453.0,0.623987]
[1724831449098,4.07606,2453.4,2453.0,0.623987]
[1724831449311,4.07581,2453.5,2453.0,5.41130859]
[1724831449633,4.07575,2453.6,2453.1,4.07637]
[1724831449895,4.07575,2453.6,2453.2,1.09926074]
[1724831450195,4.07533,2453.8,2453.2,5.24954774]
[1724831450371,4.07533,2453.8,2453.2,1.25476548]
[1724831450699,4.07533,2453.8,2453.2,5.33103548]
[1724831451002,4.07533,2453.8,2453.2,1.25476548]
[1724831451303,8.15141,2453.6,2453.2,0.70550474]
[1724831451595,8.15141,2453.6,2453.2,0.623987]
[1724831451895,4.07565,2453.6,2453.2,0.623987]
[1724831452103,8.1514,2453.6,2453.2,0.623987]
[1724831452264,4.07582,2453.5,2453.2,0.623987]
[1724831453197,4.07565,2453.6,2453.2,0.623987]
[1724831453387,4.0759,2453.5,2453.2,0.623987]
[1724831453586,4.07597,2453.4,2453.2,0.623987]
[1724831454389,4.07565,2453.6,2453.2,0.623987]
[1724831454577,4.07583,2453.5,2453.2,0.623987]
[1724831455020,4.07565,2453.6,2453.2,0.623987]
[1724831455316,8.15078,2453.8,2453.2,5.54956316]
[1724831455809,2.4536,2453.9,2453.4,4.07594]
[1724831456012,2.4536,2453.9,2453.5,0.55]
[1724831456191,4.07534,2453.8,2453.5,0.62351437]
[1724831456918,2.4536,2453.9,2453.5,0.62351437]
[1724831457279,4.07507,2454.0,2453.5,0.62351437]
[1724831457479,4.07507,2454.0,2453.5,1.10160895]
[1724831457712,4.07507,2454.0,2453.5,0.62351437]
[1724831458015,4.07525,2453.9,2453.5,0.62351437]
[1724831460214,4.07537,2453.8,2453.5,0.62351437]
[1724831460386,4.07551,2453.7,2453.5,0.62351437]
[1724831462349,4.07564,2453.6,2453.5,0.62351437]
[1724831462519,8.15128,2453.6,2453.5,0.62351437]
[1724831462723,18.70313289,2453.6,2453.5,0.07351437]
[1724831462926,18.70313289,2453.6,2452.7,7.37]
[1724831462927,4.07675,2453.0,2452.7,7.37]
[1724831463112,4.07674,2453.0,2452.8,0.07049131]
[1724831463420,27.0111,2453.1,2452.1,2.7659]
[1724831463627,4.0775,2452.5,2451.9,4.07835]
[1724831463819,6.64041289,2452.6,2451.7,1.25479135]
[1724831464038,4.07807,2452.2,2451.5,4.07907]
[1724831464210,4.07793,2452.3,2451.5,0.08156147]
[1724831464211,4.07796,2452.3,2451.5,0.08156147]
[1724831464414,4.07754,2452.5,2451.7,4.07879]
[1724831464830,4.07783,2452.3,2451.7,4.07879]
[1724831465037,4.07908,2451.6,2451.2,0.84609135]
[1724831465258,8.15748,2451.8,2451.3,0.08158039]
[1724831465562,4.07884,2451.7,2451.3,0.08158039]
[1724831466051,3.101654,2451.7,2450.8,2.431]
[1724831466253,8.15889,2451.4,2450.8,2.431]
[1724831466617,4.07965,2451.2,2450.6,0.72134306]
[1724831466928,4.08033,2450.8,2450.6,0.72134306]
[1724831467112,10.44682,2450.7,2450.6,0.72134306]
[1724831467315,10.44682,2450.7,2450.0,606.35328695]
[1724831467316,10.44682,2450.7,2450.0,603.85328695]
[1724831467317,2.4613,2450.6,2450.0,603.85328695]
[1724831467552,12.24438,2450.1,2450.0,549.8465873]
[1724831467864,20.47095289,2450.1,2450.0,549.8465873]
[1724831468164,24.87429,2450.1,2450.0,549.8465873]
[1724831468315,24.87429,2450.1,2450.0,543.7241273]
[1724831468512,17.53808,2450.1,2450.0,543.7241273]
[1724831468738,24.87429,2450.1,2450.0,541.2241273]
[1724831468951,35.15803,2450.1,2450.0,532.72774514]
[1724831469152,35.70803,2450.1,2450.0,528.35449239]
[1724831469368,74.39061724,2450.1,2450.0,448.76018037]
[1724831469673,64.68715816,2450.1,2450.0,226.88354677]
[1724831469903,64.68715816,2450.1,2450.0,51.64168868]
[1724831469904,80.42128856,2450.1,2450.0,51.64168868]
[1724831470113,0.05,2447.8,2445.9,5.54845]
[1724831470319,0.05,2447.8,2445.9,0.79665]
[1724831470320,4.08683,2446.9,2445.9,0.79665]
[1724831470614,0.128085,2446.8,2445.8,2.4157]
[1724831470775,0.128085,2446.8,2445.3,5.54845]
[1724831470983,0.128085,2446.8,2445.1,2.4157]
[1724831470984,4.0877,2446.4,2445.2,5.54845]
[1724831471165,4.215915,2446.3,2446.1,5.54845]
[1724831471364,6.11243078,2448.9,2446.1,5.54845]
[1724831471365,4.08584,2447.5,2446.1,5.54845]
[1724831471667,4.08347,2448.9,2446.1,5.54845]
[1724831471668,4.08541,2447.8,2446.9,5.54845]
[1724831471893,4.08519,2447.9,2446.9,5.54845]
[1724831472086,4.08535,2447.8,2447.2,5.54845]
[1724831472271,0.05,2448.8,2447.2,5.54845]
[1724831472272,4.08486,2448.1,2447.2,5.54845]
[1724831472478,4.61593107,2448.9,2447.5,5.54845]
[1724831472479,4.08434,2448.4,2447.5,5.54845]
[1724831472701,4.08396,2448.7,2448.1,5.54845]
[1724831472907,4.08344,2449.0,2448.5,5.54845]
[1724831473095,4.08294,2449.3,2448.6,0.55]
[1724831473264,4.08199,2449.8,2449.1,5.54845]
[1724831473475,4.08216,2449.7,2449.2,0.55]
[1724831473873,4.08216,2449.7,2449.3,0.07277481]
[1724831474125,4.08263,2449.4,2449.3,0.07277481]
[1724831474427,0.92125175,2449.4,2447.6,2.3407]
[1724831474605,4.08366,2448.8,2447.6,8.18429889]
[1724831474812,0.4560194,2449.6,2447.7,0.07034898]
[1724831474977,4.0823,2449.6,2447.7,0.07034898]
[1724831475175,4.08466,2448.2,2447.7,0.07034898]
[1724831475376,3.23126703,2448.2,2447.7,0.07034898]
[1724831475675,4.08435,2448.4,2447.7,0.07034898]
[1724831475981,4.0853,2447.8,2447.7,0.07034898]
[1724831476184,8.1706,2447.8,2447.7,0.07034898]
[1724831476398,7.0853,2447.8,2447.7,0.07034898]
[1724831476697,4.0859,2447.5,2447.0,2.4913]
[1724831476885,4.0859,2447.5,2445.6,4.08896]
[1724831476886,3.0,2447.4,2445.7,2.3581]
[1724831477084,3.0,2447.4,2446.3,2.4631]
[1724831477305,4.08549,2447.7,2446.3,2.4631]
[1724831477618,3.0,2447.6,2446.3,2.4631]
[1724831478118,4.08587,2447.5,2446.3,2.4631]
[1724831478279,4.08477,2448.2,2446.3,2.4631]
[1724831478616,4.08612,2447.4,2446.3,2.4631]
[1724831478932,3.0,2448.1,2446.4,0.08175737]
[1724831478933,7.08533,2447.8,2446.4,0.08175737]
[1724831479074,3.0,2448.1,2446.4,0.25448574]
[1724831479279,0.49743002,2448.6,2446.4,0.25448574]
[1724831479280,4.08613,2447.3,2446.4,0.25448574]
[1724831479581,8.17175,2447.5,2446.3,2.4631]
[1724831479781,3.0,2447.7,2446.3,2.4631]
[1724831480007,3.0,2447.7,2445.8,2.4173]
[1724831480008,4.08745,2446.6,2445.8,2.4173]
[1724831480229,4.08698,2446.8,2445.8,2.65903]
[1724831480393,3.0,2447.0,2445.8,2.65903]
[1724831480720,3.0,2447.0,2445.9,0.674781]
[1724831480931,4.08764,2446.4,2445.8,2.4173]
[1724831481082,4.0873,2446.7,2445.8,2.4173]
[1724831481280,4.0874,2446.6,2445.8,2.4173]
[1724831481516,4.08732,2446.6,2445.8,2.4173]
[1724831481717,4.08699,2446.8,2445.8,2.4173]
[1724831481920,4.08669,2447.0,2445.8,6.74765]
[1724831482225,0.05,2448.3,2445.8,2.65903]
[1724831482422,4.08706,2446.8,2445.8,2.4173]
[1724831482724,4.08696,2446.9,2445.8,2.4173]
[1724831482924,7.08666,2447.0,2445.8,2.4173]
[1724831483108,3.0,2447.0,2445.9,4.88018]
[1724831483281,28.76436,2448.4,2446.1,2.4721]
[1724831483282,4.08613,2447.3,2446.1,2.4721]
[1724831483483,4.08712,2446.8,2446.2,0.55]
[1724831483729,0.49743002,2448.0,2446.2,0.55]
[1724831483893,4.08644,2447.2,2446.2,3.55]
[1724831484095,4.08599,2447.4,2446.2,4.23396314]
[1724831484309,4.08599,2447.4,2446.3,2.4987]
[1724831484480,4.08599,2447.4,2446.4,0.55]
[1724831484797,4.08566,2447.6,2446.4,0.55]
[1724831484982,4.08599,2447.4,2446.4,0.55]
[1724831485183,4.08566,2447.6,2446.4,0.55]
[1724831485430,3.0,2447.5,2446.4,0.55]
[1724831485633,4.08481,2448.1,2446.7,4.08698]
[1724831485780,4.08481,2448.1,2446.5,4.70432267]
[1724831485781,24.68,2448.3,2446.8,3.0367]
[1724831485987,4.08623,2447.3,2446.8,3.0367]
[1724831486382,25.17743002,2448.2,2446.8,3.0367]
[1724831486383,4.08582,2447.5,2446.8,3.0367]
[1724831486587,4.08552,2447.7,2446.8,3.0367]
[1724831487123,4.08534,2447.8,2446.8,3.34037]
[1724831487626,4.08495,2448.1,2446.9,0.06419396]
[1724831487797,4.08495,2448.1,2447.0,2.9706]
[1724831488142,4.08501,2448.0,2447.0,3.3594464]
[1724831488428,4.08548,2447.7,2447.0,2.9706]
[1724831488590,4.08566,2447.6,2447.0,2.9706]
[1724831488789,28.76465,2448.2,2447.0,2.9706]
[1724831489031,24.68,2448.2,2447.0,2.9706]
[1724831489186,4.08509,2448.0,2447.0,2.9706]
[1724831489388,28.76468,2448.2,2447.0,2.9706]
[1724831489588,4.08481,2448.1,2447.0,2.9706]
[1724831489786,24.68,2448.2,2447.3,4.08609]
[1724831490029,4.08434,2448.4,2447.5,2.4742]
[1724831490030,24.68,2448.4,2447.5,2.4742]
[1724831490332,24.68,2448.4,2447.6,0.55]
[1724831490531,4.08495,2448.1,2447.6,0.55]
[1724831490744,4.08467,2448.2,2447.6,0.55]
[1724831490927,4.08507,2448.0,2447.6,0.55]
[1724831491232,4.0845,2448.3,2447.6,0.55]
[1724831491437,28.76438,2448.4,2447.6,0.55]
[1724831491791,24.68,2448.4,2447.7,2.4323]
[1724831491996,24.68,2448.4,2447.8,0.55]
[1724831492235,24.68,2448.9,2447.9,2.4323]
[1724831492440,28.76321,2449.1,2448.1,2.2699]
[1724831492743,4.08391,2448.7,2448.2,0.55]
[1724831492896,4.08334,2449.0,2448.2,0.55]
[1724831493097,4.08431,2448.4,2448.2,0.55]
[1724831493299,24.68,2449.0,2448.2,0.55]
[1724831493494,24.68,2449.3,2448.2,0.55]
[1724831493793,4.08353,2448.9,2448.2,0.55]
[1724831493995,28.76289,2449.3,2448.3,2.4231]
[1724831493996,4.08318,2449.1,2448.3,2.4231]
[1724831494230,4.08318,2449.1,2448.4,0.55]
[1724831494396,28.76283,2449.3,2448.4,0.55]
[1724831494596,24.68,2449.3,2448.4,0.55]
[1724831494797,24.68,2449.2,2448.7,4.08379]
[1724831494996,24.68,2449.8,2448.8,2.889]
[1724831495239,4.08214,2449.7,2448.8,2.889]
[1724831495411,4.08232,2449.6,2448.8,2.889]
[1724831495801,24.68,2449.8,2448.8,2.889]
[1724831496131,24.68,2449.8,2448.9,2.3946]
[1724831496346,24.68,2449.9,2449.1,2.3946]
[1724831496526,24.68,2449.9,2449.2,2.9446]
[1724831496692,24.68,2449.9,2449.2,2.3946]
[1724831496893,24.68,2449.9,2449.3,0.55]
[1724831497207,4.08237,2449.6,2449.3,0.52047486]
[1724831497594,4.08203,2449.8,2449.3,0.52047486]
[1724831497791,4.08213,2449.7,2449.3,0.52047486]
[1724831498204,28.76151,2450.1,2449.3,0.52047486]
[1724831498437,24.68,2450.1,2448.8,2.295]
[1724831498730,4.08224,2449.7,2448.8,2.295]
[1724831498929,4.08151,2450.1,2448.9,0.08166386]
[1724831499239,4.08198,2449.8,2448.8,2.295]
[1724831499421,4.08183,2449.9,2448.9,0.55]
[1724831499621,4.08169,2450.0,2449.0,4.08324]
[1724831499847,8.16345,2450.0,2449.1,0.55]
[1724831500052,24.68,2450.3,2448.8,2.295]
[1724831500053,4.08251,2449.5,2448.8,2.295]
[1724831500358,4.08321,2449.1,2448.3,9.8795]
[1724831500516,4.08395,2448.7,2448.3,9.8795]
[1724831500715,4.08331,2449.0,2447.9,9.7423]
[1724831500945,4.08391,2448.7,2447.9,9.7423]
[1724831501151,4.08401,2448.6,2447.9,9.7423]
[1724831501465,4.08436,2448.4,2447.2,9.7423]
[1724831501628,8.16952,2448.2,2447.2,10.928811]
[1724831501817,8.16875,2448.4,2447.3,1.5423931]
[1724831502012,8.16875,2448.4,2447.3,5.6284131]
[1724831502013,4.08434,2448.4,2447.3,5.6284131]
[1724831502219,4.08434,2448.4,2447.4,1.50760244]
[1724831502931,24.68,2448.6,2447.5,4.08578]
[1724831503141,24.68,2448.8,2447.6,9.542]
[1724831503319,24.68,2448.8,2448.1,9.542]
[1724831503535,4.08303,2449.2,2448.2,0.08169243]
[1724831503536,24.68,2449.0,2448.2,0.08169243]
[1724831503867,24.68,2449.0,2448.1,9.542]
[1724831504070,28.76341,2449.0,2448.1,9.542]
[1724831504276,28.76341,2449.0,2448.2,0.55]
[1724831504277,4.08371,2448.8,2448.2,0.55]
[1724831504568,4.08371,2448.8,2448.2,0.35]
[1724831504569,4.08409,2448.6,2448.2,0.35]
[1724831504779,4.08415,2448.5,2448.2,0.35]